Cogmind - Beta 14 @@@ ROGUE MODE // 2024.11.30 @ 13:34:10 Player: lavinia Result: Destroyed by D-53 Grenadier with Mini Grenade Launcher Performance ------------- Evolutions (0) 0 Regions Visited (2) 400 Robots Destroyed (21) 105 Value Destroyed (416) 416 Prototype IDs (2) 40 Alien Tech Used (0) 0 Bonus (8) 8 TOTAL SCORE: 969 Bonus ------- High Alert Combat Kills 8 Cogmind --------- Core Integrity 0/250 Matter 185/300 Energy 99/100 System Corruption 1% Temperature Cool (0) Movement Rolling (110) Ox2 Location -10/Mines Parts ------- > --- POWER (1) -------- (None) > --- PROPULSION (2) --- Wheel > --- UTILITY (2) ------ Large Storage Unit Sensor Array > --- WEAPON (2) ------- Hammer > --- INVENTORY (15) --- Light Ion Engine Wheel Compact Wheel Faulty Improved Flight Unit Improved Flight Unit Large Storage Unit Medium Battery (150) Signal Interpreter Power Shielding Shield Generator Medium Laser Medium Laser Light Assault Rifle Grenade Launcher Peak State ------------ > --- POWER ------------ Light Ion Engine > --- PROPULSION ------- Wheel Compact Wheel > --- UTILITY ---------- Small Storage Unit Large Storage Unit > --- WEAPON ----------- Medium Laser Medium Laser > --- INVENTORY -------- Grenade Launcher [Rating: 7] Favorites ----------- Power Light Ion Engine Engine Light Ion Engine Propulsion Wheel Wheel Wheel Utility Large Storage Unit Device Sensor Array Storage Large Storage Unit Weapon Grenade Launcher Energy Gun Medium Laser Ballistic Gun Light Assault Rifle Launcher Grenade Launcher Impact Weapon Hammer Build | -11 -10 -10 ------- Run | Yrd Mat Min Slots Evolved . | . . . Power . | . . . Propulsion . | . . . Utility . | . . . Weapon . | . . . Parts Attached 18 | 6 12 . Power 2 | 1 1 . Engine 2 | 1 1 . Core . | . . . Reactor . | . . . Propulsion 3 | 2 1 . Treads . | . . . Leg . | . . . Wheel 3 | 2 1 . Hover . | . . . Flight . | . . . Utility 5 | 1 4 . Device 2 | . 2 . Storage 3 | 1 2 . Processor . | . . . Hackware . | . . . Protection . | . . . Artifact . | . . . Weapon 8 | 2 6 . Energy Gun 3 | 2 1 . Energy Cannon . | . . . Ballistic Gun 1 | . 1 . Ballistic Cannon . | . . . Launcher 3 | . 3 . Special Weapon . | . . . Impact Weapon 1 | . 1 . Slashing Weapon . | . . . Piercing Weapon . | . . . Special Melee Weapon . | . . . Unidentified Prototypes . | . . . Parts Lost 4 | . 2 2 Power 1 | . 1 . Propulsion 2 | . 1 1 Utility . | . . . Weapon 1 | . . 1 Highest Loss Streak 2 | . 1 2 To Critical Strikes . | . . . Average Slot Usage (%) 81 | . 81 85 Engine 1 | . 1 . Wheel 27 | . 27 28 Device 8 | . 7 14 Storage 14 | . 14 14 Energy Gun 11 | . 14 . Launcher 12 | . 12 14 Impact Weapon 3 | . . 14 Peak Build Rating 7 | 6 7 7 Average Rating 6 | 2 6 6 On Entrance 4 | . 6 7 Naked Turns . | . . . Heaviest Build 28 | 12 28 26 Greatest Support 26 | 26 26 20 Greatest Overweight (x) 2 | . 2 2 Average Overweight (x) . | . . 1 Largest Inventory Capacity 15 | 8 15 15 Average Capacity 14 | 6 14 15 Most Carried 14 | 5 14 14 Average Carried 8 | 2 8 14 Final Capacity 15 | 8 15 15 Final Carried 14 | . 14 14 Class Distribution -------------------- 100% | Mutant Dominant Class ---------------- Mutant | -10/Materials Mutant | -10/Mines Resources | -11 -10 -10 ----------- Run | Yrd Mat Min Matter Collected 441 | 161 280 . Remotely . | . . . Salvage Created 433 | . 433 . Parts 37 | . 37 . Haulers Intercepted . | . . . Recyclers Shooed 1 | . 1 . Parts Field Recycled . | . . . Retrieved Matter . | . . . Parts Self-Destructed . | . . . Prevented . | . . . Kills | -11 -10 -10 ------- Run | Yrd Mat Min Combat Hostiles Destroyed 17 | . 17 . Guns 6 | . 6 . AOE 10 | . 10 . Classes Destroyed 5 | . 5 . Worker 2 | . 2 . Recycler 1 | . 1 . Watcher 1 | . 1 . Swarmer 9 | . 9 . Grunt 8 | . 8 . Best Kill Streak 5 | . 5 . Combat Bots Only 4 | . 4 . Max Kills in Single Turn 3 | . 3 . Gunslinging . | . . . Exploded 3 | . 3 . Melee . | . . . Uniques/NPCs Destroyed . | . . . Combat | -11 -10 -10 -------- Run | Yrd Mat Min Hostile Shots Fired 54 | . 38 16 Missed 17 | . 11 6 Damage Taken 697 | . 373 324 Core 259 | . 90 169 Absorbed by Shields . | . . . Core Remaining (%) 100 | 100 . . Volleys Fired 34 | . 33 1 Largest 2 | . 2 1 Hottest 100 | . 100 30 Shots Fired 65 | . 64 1 Gun 45 | . 45 . Cannon . | . . . Launcher 20 | . 19 1 Special . | . . . Kinetic 1 | . 1 . Thermal 44 | . 44 . Explosive 20 | . 19 1 Electromagnetic . | . . . Robot Hit Streak 6 | . 6 5 Robot Miss Streak 2 | . 2 . Penetration Max . | . . . Secondary Targets . | . . . Shots Hit Robots 37 | . 35 2 Core Hits 33 | . 30 3 Critical Kills . | . . . Critical Parts Destroyed . | . . . Critical Strikes 2 | . 2 . Burn 2 | . 2 . Melee Attacks 2 | . 1 1 Impact 2 | . 1 1 Slashing . | . . . Piercing . | . . . Sneak Attacks . | . . . Combat Hostiles . | . . . Follow-up Attacks . | . . . Damage Inflicted 1439 | . 1337 102 Guns 336 | . 336 . Cannons . | . . . Explosions 1081 | . 1000 81 Melee 21 | . . 21 Ramming 1 | . 1 . Kinetic . | . . . Thermal 336 | . 336 . Explosive 1081 | . 1000 81 Electromagnetic . | . . . Impact 21 | . . 21 Slashing . | . . . Piercing . | . . . Highest Corruption 1 | . 1 1 Average Corruption 1 | . 1 1 Corruption Purged . | . . . Corruption Blocked . | . . . Effects 5 | . 4 1 Energy Discharges 3 | . 3 . Data Loss (minor) 2 | . 1 1 Overload Shots . | . . . Overflow Damage 43 | . 38 5 Projectiles . | . . . Explosions 43 | . 38 5 Melee . | . . . Knockbacks . | . . . Impact . | . . . Kinetic . | . . . Secondary . | . . . Self-Inflicted Damage 113 | . 113 . Shots 5 | . 5 . Rammed 1 | . 1 . Targets Rammed 1 | . 1 . Kicked . | . . . Crushed . | . . . Highest Temperature 240 | . 240 . Average Temperature 68 | . 68 . Received Heat Transfer 84 | . 84 . Siege Activations . | . . . Robots Corrupted . | . . . Combat Hostiles . | . . . Parts Fried . | . . . Impact Corruptions . | . . . Robots Melted 1 | . 1 . Combat Hostiles 1 | . 1 . Parts Melted 2 | . 2 . Heat Transferred 1147 | . 1147 . Parts Sabotaged . | . . . Parts Stolen . | . . . Parts Stripped . | . . . Power Chain Reactions . | . . . Alert | -11 -10 -10 ------- Run | Yrd Mat Min Peak Influence 430 | . 430 123 Initial 114 | . . 114 Average 204 | . 228 114 Maximum Alert Level 2 | . 2 . Low Security (%) 39 | 100 26 100 Level 1 57 | . 70 . Level 2 3 | . 3 . Level 3 . | . . . Level 4 . | . . . Level 5 . | . . . High Security . | . . . Max Security . | . . . Squads Dispatched 5 | . 5 . Investigation 5 | . 5 . Extermination . | . . . Reinforcement . | . . . Assault . | . . . Garrison . | . . . Intercept . | . . . Searches Triggered . | . . . Construction Impeded . | . . . Haulers Reinforced . | . . . Active Scanning Responses . | . . . Cargo Convoy Interrupts . | . . . Stealth | -11 -10 -10 --------- Run | Yrd Mat Min Distress Signals 1 | . 1 . Communications Jammed . | . . . Distress Signals . | . . . Times Spotted 29 | . 24 5 Peak Tracking Total 5 | . 5 5 Tactical Retreats 2 | . 2 . Traps | -11 -10 -10 ------- Run | Yrd Mat Min Traps Triggered 4 | . 4 . Indirectly . | . . . Trap Hack Attempts . | . . . Triggered . | . . . Disarmed . | . . . Reprogrammed . | . . . Reused . | . . . Traps Extracted . | . . . Installed . | . . . Triggered . | . . . Machines | -11 -10 -10 ---------- Run | Yrd Mat Min Machines Disabled 3 | . 3 . Max in Single Turn 1 | . 1 . Machines Repaired . | . . . Machines Dismantled . | . . . Machines Sabotaged . | . . . Overloaded Fab Kills . | . . . Hacking | -11 -10 -10 --------- Run | Yrd Mat Min Machines Accessed 5 | . 5 . Terminals 5 | . 5 . Fabricators . | . . . Repair Stations . | . . . Recycling Units . | . . . Scanalyzers . | . . . Garrison Access . | . . . Total Hacks 13 | . 13 . Successful 8 | . 8 . Failed 5 | . 5 . Catastrophic 1 | . 1 . Database Lockouts . | . . . Manual . | . . . Terminals 13 | . 13 . Fabricators . | . . . Repair Stations . | . . . Recycling Units . | . . . Scanalyzers . | . . . Garrison Access . | . . . Terminal Hacks 8 | . 8 . Prototype ID Bank 1 | . 1 . Branch Access Points 1 | . 1 . Recycling Unit Index 1 | . 1 . Alert Level 2 | . 2 . Dispatch Records 1 | . 1 . Assault Status 1 | . 1 . Zone Layout 1 | . 1 . Fabricator Hacks . | . . . Repair Station Hacks . | . . . Recycling Unit Hacks . | . . . Scanalyzer . | . . . Garrison Access Hacks . | . . . Unauthorized Hacks . | . . . Terminals . | . . . Fabricators . | . . . Repair Stations . | . . . Recycling Units . | . . . Scanalyzers . | . . . Garrison Access . | . . . Data Cores Recovered . | . . . Used . | . . . Hacking Detections 3 | . 3 . Full Trace Events 1 | . 1 . Feedback Events 1 | . 1 . Corruption 1 | . 1 . Feedback Blocked . | . . . Robot Schematics Acquired . | . . . Robots Built . | . . . Authchips . | . . . Time . | . . . Total Robot Build Rating . | . . . Part Schematics Acquired . | . . . Parts Built . | . . . Authchips . | . . . Time . | . . . Total Part Build Rating . | . . . Parts Repaired . | . . . Time . | . . . Parts Recycled . | . . . Recycled Matter . | . . . Retrieved Matter . | . . . Retrieved Components . | . . . Parts Scanalyzed . | . . . Part Schematics Acquired . | . . . Parts Damaged . | . . . Bothacking | -11 -10 -10 ------------ Run | Yrd Mat Min Used RIF Installer . | . . . Robots Hacked . | . . . Non-combat . | . . . Combat . | . . . Robot Hacks Applied . | . . . Relay Couplers Released . | . . . Fabnet Peak Effective % . | . . . Robots Rewired . | . . . Allies Hacked . | . . . Hacks Repelled . | . . . Allies | -11 -10 -10 -------- Run | Yrd Mat Min Total Allies . | . . . Largest Group . | . . . Highest-Rated Group . | . . . Highest-Rated Ally . | . . . Total Orders . | . . . Ally Attacks . | . . . Total Damage . | . . . Kills . | . . . Allies Corrupted . | . . . Allies Melted . | . . . Intel | -11 -10 -10 ------- Run | Yrd Mat Min Robot Analysis Total . | . . . Derelict Logs Recovered . | . . . Drone Launches . | . . . Drone Recoveries . | . . . Exploration | -11 -10 -10 ------------- Run | Yrd Mat Min Turns Passed 1247 | 36 1021 190 Spaces Moved 892 | 37 671 184 Core 21 | 21 . . Treads . | . . . Legs . | . . . Wheels 871 | 16 671 184 Hover . | . . . Flight . | . . . Fastest Speed 50 | 50 90 95 Average Speed 93 | 67 93 95 Slowest Speed 110 | 90 110 110 Overloaded Moves . | . . . Propulsion Burnouts . | . . . Robots Hopped . | . . . Cave-ins Triggered . | . . . Exploration Rate (%) 46 | 3 96 39 Regions Visited 2 Branch Regions 1 Pre-discovered Areas . | . . . Known Exits Taken 1 | . 1 . Unknown Exits Taken 1 | 1 . . Scrap Searched . | . . . Spaces Dug . | . . . Terrain Destroyed 140 | . 128 12 Melee . | . . . Projectile . | . . . AOE 140 | . 128 12 Terrain Rammed . | . . . Walls Destroyed . | . . . Machines Disabled . | . . . Actions | -11 -10 -10 --------- Run | Yrd Mat Min Total 1237 | 47 993 197 Wait 267 | . 256 11 Move 890 | 36 670 184 Hop . | . . . Pick Up 22 | 5 17 . Fast Attach 1 | 1 . . Attach 9 | 5 4 . Detach 2 | . 2 . Swap 8 | . 8 . Drop 1 | . 1 . Fire 34 | . 33 1 Melee 2 | . 1 1 Ram 1 | . 1 . Kick . | . . . Crush . | . . . Escape Stasis . | . . . Rewire . | . . . Trap . | . . . Miscellaneous . | . . . Route ------- -11/Scrapyard -10/Materials (discovered 4 exits: [*Mat x3] / *Min) -10/Mines History --------- Turn | Location | Event 5 | -11/Scrapyard | Discovered new exit (range 16) 37 | -11/Scrapyard | Entered Materials 49 | -10/Materials | Identified exit to Mines 137 | -10/Materials | Discovered new exit (range 8) 311 | -10/Materials | Build established: Mutant 360 | -10/Materials | Discovered new exit (range 4) 747 | -10/Materials | Discovered new exit (range 16) 1058 | -10/Materials | Entered Mines 1102 | -10/Mines | Met a Derelict bent on vengeance 1215 | -10/Mines | Assembled infested the area 1244 | -10/Mines | Core integrity fell below 50% 1246 | -10/Mines | Core integrity fell below 20% 1248 | -10/Mines | Destroyed by D-53 Grenadier with Mini Grenade Launcher Last Messages --------------- blocked, but can have serious negative consequences. K-01 Serf cleans the Machine. System corrupted: Energy discharge (-32). LOCATION=MINES GOAL=ESCAPE Something is scanning the area. I5-H89(g): "TASTE MY VENGEANCE!" ALERT: Infestation in the mines, dispatching Demolisher response squad. System corrupted: Component data lost. K-01 Serf collects debris. C-30 ARC bursts open, deploying its payload. D-53 Grenadier unfolds itself. K-01 Serf destroyed. T-07 Excavator destroyed. Grenade Launcher destroyed. S-10 Pest destroyed. Wheel destroyed. S-10 Pest destroyed. Map ----- +----------------------------------------------------+ | ?????????????????????????????????????????????????? | | ?????????????????????????????????????????????????? | | ?????????????????????????????????????????????????? | | ?????????????????????????????????????????????????? | | ?????????????????????????????????????????????????? | | ?????????????????????????????????????????????????? | | ?????????????????????????????????????????????????? | | ?????????????????????????????????????????????????? | | ?????????????????????????????????????????????????? | | ?????????????????????????????????????????????????? | | ?????????????????????????????????????????????????? | | ?????????????????????????????????????????????????? | | ?????????????????????????????????????????????????? | | ?????????????????????????????????????????????????? | | ?????????????????????????????????????????????????? | | ?????????????????????????????????????????????????? | | ?????????????????????????????????????????????????? | | ?????????????????????????????????????????????????? | | ?????????????????????????????????????????????????? | | ?????????????????????????????????????????????????? | | ?????????????????????????????????????????????????? | | ??????????????????????#######????????????????????? | | ?????????????????????## ######### ?????????? | | ????????????????????## = t u #?????????? | | ???????????????????## dd [%= ????????????? | | ???????????????????# @ #???????????????????? | | ???????????????????# #???????????????????? | | ???????????????????# #??????????????????? | | ???????????????????# #??????????????????? | | ???????????????????## ##??????????????????? | | ???????????????????## ##???????????????????? | | ???????????????????# #????????????????????? | | ???????????????????# ###???????????????????? | | ???????????????????## a ##??????????????????? | | ????????????????????## #??????????????????? | | ????????????????????## #??????????????????? | | ???????????????????## #??????????????????? | | ??????????????????## #??????????????????? | | ?????????###?????## ##??????????????????? | | ?????????? ???## #???????????????????? | | ???????????# #### ## ##???????????????????? | | ???????????# * ##?###????????????????????? | | ???????????### # #?????????????????????????? | | ?????????????# ## * ##?????????????????????????? | | ??????####???# ### !###??????????????????????????? | | ?????## ##??# #?####????????????????????????????? | | ????## ##?# #????##???????????????????????????? | | ##### #?# #???# ##??????????????????????????? | | # ### #??? #??????????????????????????? | | # ## ## ##?# #??????????????????????????? | +----------------------------------------------------+ Best States ------------- Heat Dissipation 25 Energy Generation 10 Energy Capacity 250 Matter Stores 300 Matter Capacity 300 Sight Range 16 Robot Scan Range 14 Terrain Scan Density 10 Evasion (%) 50 Item Schematics ----------------- None Robot Schematics ------------------ None Fabricated ------------ Nothing Alien Tech Used ----------------- None Achievements -------------- Party Time Challenges ------------ None Game ------ Seed MetaThiefSheargun Manual? 0 Play Time 00:21:02 Cumulative 3.7 hours Start 2024.11.30 @ 13:14:29 End 2024.11.30 @ 13:34:10 Sessions 1 Manual Loads 0 Difficulty Rogue Special Mode None Game No. 5 Rogue 5 Adventurer 0 Explorer 0 Win Type - Total 0 Types 0/0/0/0/0/0/0/0/0 Lore% 6 Gallery% 4 Achievement% 7 Wizard Run 0 Options --------- Layout 1 ASCII 0 Keyboard 0 Movement Mouse Keybinds 0 Fullscreen 2 Font 24/Smallcaps Map View 50x35 Zoom Use 0% Tactical HUD 0 Map Filters NONE Filters NONE Steam 1 RUN: 0601c5b7-8868-43be-a4dd-34565b645bff